bitfinex-derivatives/quotes_BTCF0:USTF0_20240917
["timestamp","ask_amount","ask_price","bid_price","bid_amount"]
[1726560449863,0.0008,58746.0,58745.0,0.09067039]
[1726560450460,0.0008,58746.0,58745.0,0.09267039]
[1726560451294,0.0008,58746.0,58745.0,0.61347039]
[1726560451455,0.0008,58746.0,58745.0,1.72415039]
[1726560451962,0.0008,58746.0,58745.0,1.29858739]
[1726560452271,0.00255319,58754.0,58753.0,0.085106]
[1726560452460,0.00255319,58754.0,58753.0,0.245106]
[1726560454264,0.08765719,58754.0,58753.0,0.085106]
[1726560454561,0.08765719,58754.0,58753.0,0.085466]
[1726560454764,0.08765719,58754.0,58753.0,0.0004]
[1726560455357,0.09365719,58754.0,58753.0,0.0004]
[1726560455557,0.09465719,58754.0,58753.0,0.0014]
[1726560466765,0.17976119,58754.0,58753.0,0.0014]
[1726560467964,0.90136119,58754.0,58753.0,0.0014]
[1726560469578,0.90120119,58754.0,58753.0,0.0014]
[1726560472475,0.085113,58748.0,58747.0,0.16664315]
[1726560472672,0.085113,58748.0,58745.0,0.00455339]
[1726560472673,0.446313,58748.0,58746.0,0.08450007]
[1726560472870,0.085514,58747.0,58746.0,0.08450007]
[1726560473077,0.085114,58747.0,58746.0,0.08450007]
[1726560473382,0.085116,58746.0,58745.0,0.08905346]
[1726560473601,0.085116,58746.0,58745.0,0.19548993]
[1726560473771,0.085516,58746.0,58745.0,0.19548993]
[1726560474379,0.084516,58746.0,58745.0,0.19548993]
[1726560475086,0.084516,58746.0,58745.0,0.09205346]
[1726560475285,0.084516,58746.0,58745.0,0.19849095]
[1726560475782,0.083516,58746.0,58745.0,0.19849095]
[1726560476381,0.083516,58746.0,58745.0,0.20049095]
[1726560476790,0.083516,58746.0,58745.0,0.28560795]
[1726560477475,0.083516,58746.0,58745.0,0.28558932]
[1726560479289,0.083516,58746.0,58745.0,0.28557148]
[1726560479593,0.083516,58746.0,58745.0,0.20108925]
[1726560479791,0.083516,58746.0,58745.0,0.28557171]
[1726560479992,0.083516,58746.0,58745.0,0.28557947]
[1726560480593,0.083516,58746.0,58745.0,0.28558222]
[1726560480819,0.083516,58746.0,58745.0,0.20108925]
[1726560481098,0.083516,58746.0,58745.0,0.20103]
[1726560481994,0.083516,58746.0,58745.0,0.20098516]
[1726560482598,0.083516,58746.0,58745.0,0.09467039]
[1726560482800,0.083516,58746.0,58745.0,0.20104798]
[1726560484502,0.083516,58746.0,58745.0,0.20088798]
[1726560485007,0.083516,58746.0,58745.0,0.11337759]
[1726560486299,0.083516,58746.0,58745.0,0.21984385]
[1726560486500,0.083516,58746.0,58745.0,0.11346626]
[1726560487800,0.083516,58746.0,58745.0,0.11347682]
[1726560488094,0.083516,58746.0,58745.0,0.007]
[1726560488701,0.083516,58746.0,58745.0,0.11348601]
[1726560489004,0.083516,58746.0,58745.0,0.11348617]
[1726560489213,0.083516,58746.0,58745.0,0.007]
[1726560489416,0.083516,58746.0,58745.0,0.11350804]
[1726560490706,0.444316,58746.0,58745.0,0.11350804]
[1726560494599,0.083516,58746.0,58745.0,0.11350804]
[1726560494805,0.444316,58746.0,58745.0,0.11350804]
[1726560494996,0.444316,58746.0,58745.0,0.11358375]
[1726560495205,0.529432,58746.0,58745.0,0.11358375]
[1726560495412,0.529432,58746.0,58745.0,0.007]
[1726560495801,0.529432,58746.0,58744.0,0.07027082]
[1726560495802,0.170234,58745.0,58744.0,0.07027082]
[1726560495996,0.170234,58745.0,58744.0,0.00255305]
[1726560495997,0.085917,58745.0,58744.0,0.00255305]
[1726560496507,0.085917,58745.0,58744.0,0.08767205]
[1726560496805,0.085917,58745.0,58744.0,0.09167205]
[1726560497011,0.085917,58745.0,58744.0,0.09467205]
[1726560497418,0.085917,58745.0,58744.0,0.00577305]
[1726560499616,0.085917,58745.0,58744.0,0.00573305]
[1726560500213,0.085917,58745.0,58744.0,0.09085205]
[1726560501414,0.085917,58745.0,58744.0,0.09340528]
[1726560501912,0.085917,58745.0,58744.0,0.19340528]
[1726560503206,0.085917,58745.0,58744.0,0.27803718]
[1726560503903,0.085917,58745.0,58744.0,0.17803718]
[1726560504310,0.085917,58745.0,58744.0,0.27803718]
[1726560505416,0.085917,58745.0,58744.0,0.38413337]
[1726560505812,0.0004,58748.0,58744.0,0.425409]
[1726560506108,0.3608,58757.0,58756.0,0.085101]
[1726560506318,0.3608,58757.0,58756.0,0.185101]
[1726560506505,0.36988054,58757.0,58756.0,0.185101]
[1726560507200,0.46988054,58757.0,58754.0,0.1]
[1726560507405,0.085108,58752.0,58750.0,0.1]
[1726560507601,0.085909,58751.0,58750.0,0.08511]
[1726560507809,0.132209,58751.0,58750.0,0.08511]
[1726560508510,0.132209,58751.0,58747.0,0.24447092]
[1726560508511,0.085113,58749.0,58747.0,0.085113]
[1726560508711,0.085113,58749.0,58747.0,0.16958492]
[1726560508712,0.0008,58748.0,58747.0,0.16958492]
[1726560508911,0.0008,58748.0,58747.0,0.27533242]
[1726560509811,0.0008,58748.0,58747.0,0.27533635]
[1726560510112,0.0018,58748.0,58747.0,0.085114]
[1726560510417,0.0018,58748.0,58747.0,0.27633405]
[1726560510909,0.0018,58748.0,58747.0,0.19189088]
[1726560511311,0.0018,58748.0,58747.0,0.2762471]
[1726560511501,0.0018,58748.0,58747.0,0.19180111]
[1726560512210,0.0018,58748.0,58747.0,0.27624735]
[1726560512407,0.0018,58748.0,58747.0,0.27647399]
[1726560512717,0.0018,58748.0,58747.0,0.17056024]
[1726560512918,0.0018,58748.0,58747.0,0.1920012]
[1726560513432,0.0018,58748.0,58747.0,0.19191256]
[1726560514611,0.00176,58748.0,58747.0,0.19191256]
[1726560515503,0.00176,58748.0,58747.0,0.27635502]
[1726560515707,0.001,58748.0,58747.0,0.17055646]
[1726560515908,0.001,58748.0,58747.0,0.086954]
[1726560516107,0.001,58748.0,58747.0,0.27733323]
[1726560516319,0.001,58748.0,58747.0,0.086954]
[1726560516815,0.001,58748.0,58747.0,0.27730205]
[1726560517006,0.001,58748.0,58747.0,0.2773]
[1726560517202,0.001,58748.0,58747.0,0.27729483]
[1726560517419,0.001,58748.0,58747.0,0.27734091]
[1726560517612,0.001,58748.0,58747.0,0.27728853]
[1726560518106,0.001,58748.0,58747.0,0.19284812]
[1726560518706,0.001,58748.0,58747.0,0.27722585]
[1726560519221,0.001,58748.0,58747.0,0.17139673]
[1726560519724,0.01028915,58748.0,58747.0,0.17139673]
[1726560520117,0.01028915,58748.0,58747.0,0.19283171]
[1726560520420,0.01028915,58748.0,58747.0,0.17140179]
[1726560520620,0.01028915,58748.0,58747.0,0.086954]
[1726560520925,0.001,58748.0,58747.0,0.19285828]
[1726560521626,0.001,58748.0,58747.0,0.18907828]
[1726560521814,0.001,58748.0,58747.0,0.18899716]
[1726560522220,0.001,58748.0,58747.0,0.18939716]
[1726560522421,0.001,58748.0,58747.0,0.27384869]
[1726560522722,0.001,58748.0,58747.0,0.273848]
[1726560522917,0.001,58748.0,58747.0,0.18952241]
[1726560523121,0.001,58748.0,58747.0,0.18946457]
[1726560523425,0.001,58748.0,58747.0,0.16802329]
[1726560523616,0.001,58748.0,58747.0,0.083574]
[1726560524010,0.001,58748.0,58747.0,0.18952201]
[1726560524218,0.001,58748.0,58747.0,0.27396566]
[1726560524411,0.001,58748.0,58747.0,0.27396521]
[1726560524721,0.001,58748.0,58747.0,0.18952201]
[1726560525122,0.001,58748.0,58747.0,0.70020201]
[1726560526426,0.001,58748.0,58747.0,0.18952201]
[1726560526617,0.001,58748.0,58747.0,0.70020201]
[1726560526817,0.001,58748.0,58747.0,0.18952201]
[1726560527013,0.001,58748.0,58747.0,0.18935694]
[1726560528719,0.001,58748.0,58747.0,0.29072205]
[1726560529032,0.001,58748.0,58747.0,0.18935694]
[1726560529926,0.001,58748.0,58747.0,0.18939684]
[1726560530119,0.001,58748.0,58747.0,0.27451084]
[1726560530318,0.001,58748.0,58747.0,0.29076195]
[1726560532416,0.001,58748.0,58747.0,0.18939684]
[1726560533730,0.001,58748.0,58747.0,0.083574]
[1726560533931,0.001,58748.0,58747.0,0.18943415]
[1726560534227,0.001,58748.0,58747.0,0.31564118]
[1726560536332,0.001,58748.0,58747.0,0.47564118]
[1726560538830,0.001,58748.0,58747.0,0.47548259]
[1726560540528,0.001,58748.0,58747.0,0.47569843]
[1726560541227,0.08511,58751.0,58747.0,0.47569843]
[1726560541429,0.08511,58751.0,58750.0,0.10186041]
[1726560541734,0.08511,58751.0,58750.0,0.20775844]
[1726560542115,0.08511,58751.0,58750.0,0.20796924]
[1726560542429,0.08511,58751.0,58750.0,0.10650883]
[1726560542753,0.004,58751.0,58750.0,0.19161883]
[1726560543238,0.004,58751.0,58750.0,0.31786917]
[1726560543529,0.004,58751.0,58750.0,1.42850917]
[1726560544137,0.004,58751.0,58750.0,1.42822209]
[1726560544138,0.007,58751.0,58750.0,1.42822209]
[1726560544431,0.00692,58751.0,58750.0,1.42822209]
[1726560546024,0.00692,58751.0,58750.0,1.42444209]
[1726560546623,0.00692,58751.0,58750.0,0.91380209]
[1726560546926,0.00692,58751.0,58750.0,1.42433071]
[1726560547233,0.00692,58751.0,58750.0,0.82433071]
[1726560548219,0.00692,58751.0,58750.0,0.91885943]
[1726560548433,0.00692,58751.0,58750.0,0.70761206]
[1726560548823,0.00692,58751.0,58750.0,0.86761206]
[1726560549619,0.00692,58751.0,58750.0,0.70761206]
[1726560549824,0.00692,58751.0,58750.0,0.35697206]
[1726560550019,0.00692,58751.0,58750.0,0.80761206]
[1726560550234,0.00692,58751.0,58750.0,0.93336916]
[1726560550933,0.00692,58751.0,58750.0,0.42272916]
[1726560551131,0.0461,58759.0,58758.0,0.085099]
[1726560551335,0.05553546,58759.0,58758.0,0.37572715]
[1726560551528,0.05553546,58759.0,58758.0,0.29107069]
[1726560552325,0.011,58759.0,58758.0,0.29207069]
[1726560552534,0.3608,58770.0,58758.0,1.97403921]
[1726560552738,0.0937,58777.0,58776.0,0.085072]
[1726560552951,0.0937,58777.0,58776.0,0.085472]
[1726560553137,0.0937,58777.0,58776.0,0.18977932]
[1726560553431,0.0937,58777.0,58776.0,0.27405174]
[1726560553740,0.3608,58782.0,58781.0,0.085065]
[1726560554037,0.3608,58782.0,58781.0,0.085465]
[1726560554935,0.3678,58782.0,58781.0,0.086465]
[1726560556040,0.3678,58782.0,58781.0,0.246465]
[1726560556631,0.3678,58782.0,58781.0,0.247465]
[1726560556828,0.3618,58782.0,58781.0,0.246465]
[1726560557250,0.3618,58782.0,58781.0,0.245465]
[1726560559538,0.36144,58782.0,58781.0,0.245465]
[1726560560542,0.001,58782.0,58781.0,0.245465]
[1726560561433,0.001,58782.0,58781.0,0.29585247]
[1726560561633,0.001,58782.0,58781.0,0.245465]
[1726560561842,0.00255178,58786.0,58785.0,0.085059]
[1726560562043,0.00255178,58786.0,58785.0,0.245459]
[1726560563732,0.00455178,58786.0,58785.0,0.245459]
[1726560567942,0.36535178,58786.0,58785.0,0.245459]
[1726560570248,0.36535178,58786.0,58785.0,0.241679]
[1726560570845,0.36535178,58786.0,58785.0,0.1604]
[1726560571047,0.45040978,58786.0,58785.0,0.0004]
[1726560572250,0.45040978,58786.0,58782.0,0.00255151]
[1726560572251,0.170124,58783.0,58782.0,0.00255151]
[1726560572438,0.085074,58775.0,58773.0,0.00255208]
[1726560572635,0.1604,58783.0,58773.0,0.00255208]
[1726560572636,0.05,58774.0,58773.0,0.00255208]
[1726560572843,0.0496,58774.0,58773.0,0.00255208]
[1726560573149,0.134675,58774.0,58773.0,0.00255208]
[1726560574350,0.0496,58774.0,58773.0,0.16255208]
[1726560574851,0.0506,58774.0,58773.0,0.16255208]
[1726560575552,0.135675,58774.0,58773.0,0.16255208]
[1726560575856,0.50572763,58774.0,58773.0,0.00255208]
[1726560576047,0.085084,58768.0,58767.0,0.05038747]
[1726560576246,0.085087,58766.0,58764.0,0.0529397]
[1726560576448,0.0004,58765.0,58764.0,0.0529397]
[1726560576749,0.085087,58766.0,58764.0,0.0529827]
[1726560577057,0.085087,58766.0,58765.0,0.0004]
[1726560577649,0.086087,58766.0,58765.0,0.0004]
[1726560577846,0.083087,58766.0,58765.0,0.0004]
[1726560578356,0.245087,58766.0,58765.0,0.0004]
[1726560579356,0.248087,58766.0,58765.0,0.0004]
[1726560579653,0.25735911,58766.0,58765.0,0.0004]
[1726560580058,1.20987911,58766.0,58765.0,0.0004]
[1726560580244,1.21087911,58766.0,58765.0,0.0004]
[1726560581245,0.085094,58761.0,58759.0,0.05049036]
[1726560581556,0.085094,58761.0,58756.0,0.06732049]
[1726560581557,0.085101,58756.0,58755.0,0.00255262]
[1726560581850,0.085501,58756.0,58755.0,0.00255262]
[1726560582657,0.082501,58756.0,58755.0,0.00255262]
[1726560583054,0.0004,58756.0,58755.0,0.15497611]
[1726560583258,0.0004,58756.0,58755.0,0.08765562]
[1726560583453,0.0014,58756.0,58755.0,0.09465562]
[1726560583657,0.00255299,58763.0,58760.0,0.085095]
[1726560583858,0.00255299,58763.0,58762.0,0.16]
[1726560584156,0.00255299,58763.0,58762.0,0.1604]
[1726560585650,0.08764399,58763.0,58762.0,0.1604]
[1726560585852,0.08764399,58763.0,58762.0,0.0004]
[1726560586245,0.08964399,58763.0,58762.0,0.0004]
[1726560586446,0.09064399,58763.0,58762.0,0.0004]
[1726560587959,0.09064399,58763.0,58762.0,0.1604]
[1726560588161,0.00555299,58763.0,58762.0,0.1604]
[1726560589161,0.00555299,58763.0,58762.0,0.16004]
[1726560590558,0.00555299,58763.0,58762.0,0.16]
[1726560591369,0.36635299,58763.0,58762.0,0.16]
[1726560591954,0.36535299,58763.0,58762.0,0.16]
[1726560592174,0.36535299,58763.0,58762.0,0.162]
[1726560593057,0.36335299,58763.0,58762.0,0.165]
[1726560594480,0.36335299,58763.0,58762.0,0.1646]
[1726560595070,0.36335299,58763.0,58762.0,0.1626]
[1726560595272,0.44844399,58763.0,58762.0,0.003]
[1726560596067,0.44844399,58763.0,58762.0,0.163]
[1726560596466,0.44944399,58763.0,58762.0,0.161]
[1726560596665,0.45144399,58763.0,58762.0,0.16]
[1726560597374,0.44944399,58763.0,58762.0,0.16]
[1726560598374,0.44844399,58763.0,58762.0,0.161]
[1726560599279,0.36635299,58763.0,58762.0,0.245093]
[1726560599575,0.36635299,58763.0,58762.0,0.29554054]
[1726560600163,0.36435299,58763.0,58762.0,0.29554054]
[1726560600364,0.00255299,58763.0,58762.0,0.248093]
[1726560600571,0.00255299,58763.0,58762.0,0.31535639]
[1726560600876,0.00255299,58763.0,58762.0,0.248093]
[1726560601774,0.00255299,58763.0,58762.0,0.33224361]
[1726560602277,0.00255299,58763.0,58762.0,0.43727426]
[1726560602474,0.00255299,58763.0,58762.0,0.43725515]
[1726560602771,0.36335299,58763.0,58762.0,0.163]
[1726560602977,0.44844399,58763.0,58762.0,0.2304511]
[1726560603181,0.36335299,58763.0,58762.0,0.2284511]
[1726560603379,0.36335299,58763.0,58762.0,0.2324511]
[1726560603579,0.36335299,58763.0,58762.0,0.165]
[1726560604076,0.36335299,58763.0,58762.0,0.250093]
[1726560605381,0.36335299,58763.0,58762.0,0.247093]
[1726560605572,0.36335299,58763.0,58762.0,0.35252844]
[1726560606081,0.36335299,58763.0,58762.0,0.35152844]
[1726560606568,0.36435299,58763.0,58762.0,0.35052844]
[1726560609165,0.36335299,58763.0,58762.0,0.35052844]
[1726560609366,0.36435299,58763.0,58762.0,0.35052844]
[1726560610074,0.36435299,58763.0,58762.0,0.35961259]
[1726560610384,0.36435299,58763.0,58762.0,0.54568632]
[1726560610385,0.00355299,58763.0,58762.0,0.54568632]
[1726560610681,0.3608,58768.0,58767.0,0.085086]
[1726560610869,0.3608,58768.0,58767.0,0.45225668]
[1726560611184,0.3608,58768.0,58767.0,0.45198807]
[1726560611986,0.3608,58768.0,58767.0,0.35065283]
[1726560612274,0.3608,58781.0,58767.0,1.56243863]
[1726560612474,0.3608,58781.0,58776.0,0.085472]
[1726560612677,0.3608,58781.0,58780.0,0.085067]
[1726560612881,0.00255178,58786.0,58785.0,0.085059]
[1726560613078,0.00255178,58786.0,58785.0,0.45137891]
[1726560613385,0.3608,58788.0,58787.0,0.085057]
[1726560613679,0.00564,58794.0,58793.0,0.085048]
[1726560613976,0.00564,58794.0,58793.0,0.245448]
[1726560614378,0.00564,58794.0,58793.0,0.31269341]
[1726560615175,0.00564,58794.0,58793.0,0.245448]
[1726560615376,0.4088,58807.0,58799.0,0.085039]
[1726560615571,0.41825442,58807.0,58806.0,0.1608]
[1726560616201,0.57825442,58807.0,58806.0,0.0008]
[1726560616367,1.68841442,58807.0,58806.0,0.0008]
[1726560616676,1.68941442,58807.0,58799.0,0.001]
[1726560616878,0.3608,58800.0,58799.0,0.001]
[1726560617079,0.3608,58800.0,58796.0,0.00255109]
[1726560617284,0.0004,58797.0,58796.0,0.00255109]
[1726560619174,0.0004,58797.0,58796.0,0.00355109]
[1726560619683,0.0014,58797.0,58796.0,0.00355109]
[1726560619878,0.596682,58797.0,58796.0,0.00355109]
[1726560620080,0.756682,58797.0,58796.0,0.00355109]
[1726560620278,1.37818724,58797.0,58796.0,0.00455109]
[1726560622180,1.37818724,58797.0,58787.0,0.004]
[1726560622482,0.3612,58788.0,58787.0,0.245057]
[1726560623277,0.3612,58788.0,58787.0,0.246057]
[1726560623486,0.0004,58788.0,58787.0,0.607857]
[1726560623679,0.00255153,58791.0,58790.0,0.085052]
[1726560624292,0.00255153,58791.0,58790.0,0.085452]
[1726560624981,0.01255153,58791.0,58790.0,0.086452]
[1726560625494,0.01255153,58791.0,58790.0,0.09591934]
[1726560625682,0.01555153,58791.0,58790.0,0.087452]
[1726560627090,0.3608,58803.0,58790.0,0.0024]
[1726560627289,0.3608,58803.0,58802.0,0.1604]
[1726560627987,0.3608,58803.0,58802.0,0.245435]
[1726560628393,0.0008,58807.0,58806.0,0.085029]
[1726560628688,0.0008,58807.0,58806.0,0.245429]
[1726560628888,0.0008,58807.0,58806.0,0.755589]
[1726560629278,0.0495,58820.0,58811.0,0.00255015]
[1726560629279,0.4103,58820.0,58811.0,0.00255015]
[1726560629495,0.4103,58820.0,58819.0,0.1608]
[1726560630688,0.3608,58820.0,58819.0,0.24581]
[1726560631188,0.3608,58820.0,58819.0,0.24681]
[1726560632288,0.3608,58820.0,58819.0,0.24781]
[1726560634191,0.36064,58820.0,58819.0,0.24781]
[1726560634889,0.36064,58820.0,58819.0,0.0028]
[1726560635898,0.445649,58820.0,58819.0,0.0028]
[1726560636281,1.555689,58820.0,58819.0,0.0028]
[1726560636588,1.555689,58820.0,58811.0,0.00255015]
[1726560636589,0.085019,58814.0,58811.0,0.00255015]
[1726560636889,0.130219,58813.0,58811.0,0.00255015]
[1726560637091,0.0452,58813.0,58811.0,0.00255015]
[1726560637489,0.0452,58813.0,58812.0,0.24502]
[1726560638798,0.0452,58813.0,58812.0,0.16]
[1726560638995,0.0452,58813.0,58812.0,0.161]
[1726560639393,0.0452,58813.0,58812.0,0.162]
[1726560640288,0.0452,58813.0,58812.0,0.002]
[1726560642096,0.0452,58813.0,58812.0,0.162]
[1726560642291,0.085018,58814.0,58812.0,0.162]
[1726560642492,0.085018,58814.0,58813.0,0.0008]
[1726560644597,0.170037,58814.0,58813.0,0.0008]
[1726560645292,0.170037,58814.0,58813.0,0.0018]
[1726560646088,1.195098,58814.0,58804.0,0.00255029]
[1726560646303,0.445831,58805.0,58804.0,0.00255029]
[1726560648496,0.445831,58805.0,58804.0,0.00355029]
[1726560648903,0.446831,58805.0,58804.0,0.00355029]
[1726560650002,0.447831,58805.0,58804.0,0.00355029]
[1726560651804,0.446831,58805.0,58804.0,0.00355029]
[1726560652700,0.446831,58805.0,58804.0,0.05379045]
[1726560652920,0.3618,58805.0,58804.0,0.00355029]
[1726560653409,0.3618,58805.0,58804.0,0.07053717]
[1726560653607,0.3618,58805.0,58804.0,0.00355029]
[1726560653792,0.3618,58805.0,58804.0,0.15556917]
[1726560654194,0.3618,58805.0,58804.0,0.08858229]
[1726560659201,0.3618,58805.0,58804.0,0.27543403]
[1726560659806,0.3618,58805.0,58804.0,0.27543127]
[1726560660007,0.3618,58805.0,58804.0,0.27543058]
[1726560660311,0.3618,58805.0,58804.0,0.19039858]
[1726560660604,0.3618,58805.0,58804.0,0.24858229]
[1726560662399,0.3622,58805.0,58804.0,0.08858229]
[1726560664205,0.3622,58805.0,58804.0,0.24858229]
[1726560664518,0.0014,58805.0,58804.0,0.35176222]
[1726560665206,0.00415083,58808.0,58807.0,0.085028]
[1726560665409,0.00415083,58808.0,58807.0,0.34860793]
[1726560665711,0.00415083,58808.0,58807.0,0.34844888]
[1726560666507,0.00415083,58808.0,58807.0,0.44944266]
[1726560666703,0.00515083,58808.0,58807.0,0.45044266]
[1726560666905,0.00515083,58808.0,58807.0,0.45044817]
[1726560667403,0.00515083,58808.0,58807.0,0.34944888]
[1726560667922,0.00515083,58808.0,58807.0,0.35044888]
[1726560668606,0.00515083,58808.0,58807.0,0.35047764]
[1726560668806,0.00515083,58808.0,58807.0,0.35979405]
[1726560672418,0.3608,58811.0,58807.0,1.38485535]
[1726560672620,0.0025503,58817.0,58816.0,0.085015]
[1726560672827,0.0025503,58817.0,58816.0,0.34883394]
[1726560673016,0.0025503,58817.0,58816.0,0.34803394]
[1726560673317,0.0025503,58817.0,58816.0,0.245015]
[1726560673623,0.0025503,58817.0,58816.0,0.3929194]
[1726560673818,0.0025503,58817.0,58816.0,0.3939194]
[1726560674020,0.0025503,58817.0,58816.0,0.39391424]
[1726560674215,0.0025503,58817.0,58816.0,0.49491225]
[1726560674410,0.0025503,58817.0,58816.0,0.4949131]
[1726560674617,0.0025503,58817.0,58816.0,0.39391509]
[1726560674933,0.0474,58825.0,58816.0,0.30890009]
[1726560675116,0.0474,58825.0,58824.0,0.1608]
[1726560675509,0.0474,58825.0,58824.0,0.3130385]
[1726560675711,0.0474,58825.0,58824.0,0.245803]
[1726560676317,0.0474,58825.0,58824.0,0.1618]
[1726560676511,0.0474,58825.0,58824.0,0.0018]
[1726560677221,0.292402,58825.0,58824.0,0.0018]
[1726560677428,0.085007,58822.0,58820.0,0.05041898]
[1726560677722,0.085007,58822.0,58819.0,0.05041898]
[1726560677723,0.490807,58821.0,58819.0,0.05041898]
[1726560678830,0.085013,58817.0,58815.0,0.0672355]
[1726560679028,0.3608,58816.0,58814.0,0.0672355]
[1726560679323,0.3608,58816.0,58813.0,0.00255036]
[1726560679716,0.37008445,58816.0,58813.0,0.00255036]
[1726560680628,0.37008445,58816.0,58813.0,0.00355036]
[1726560681420,0.37008445,58816.0,58813.0,0.00455036]
[1726560681827,0.085016,58815.0,58813.0,0.00455036]
[1726560682030,0.37008445,58816.0,58813.0,0.00455036]
[1726560682336,0.132618,58814.0,58813.0,0.00455036]
[1726560682633,0.0476,58814.0,58813.0,0.00455036]
[1726560685430,0.0476,58814.0,58813.0,0.00355036]
[1726560685630,0.0476,58814.0,58813.0,0.00455036]
[1726560686033,0.132618,58814.0,58813.0,0.00455036]
[1726560689333,0.132618,58814.0,58813.0,0.002]
[1726560689334,1.327716,58814.0,58813.0,0.002]
[1726560689537,1.242698,58814.0,58813.0,0.002]
[1726560689923,0.132618,58814.0,58813.0,0.002]
[1726560690821,0.085029,58806.0,58805.0,0.06725522]
[1726560691027,0.085031,58805.0,58804.0,0.0698717]
[1726560691231,0.692891,58805.0,58804.0,0.00255029]
[1726560691428,1.292891,58805.0,58804.0,0.00255029]
[1726560692234,1.292891,58805.0,58804.0,0.00355029]
[1726560694135,1.053691,58805.0,58804.0,0.00355029]
[1726560694832,1.738722,58805.0,58804.0,0.001]
[1726560696741,0.543531,58805.0,58804.0,0.161]
[1726560696931,0.3608,58805.0,58804.0,0.246032]
[1726560698143,0.3608,58805.0,58804.0,0.25534226]
[1726560698945,0.3608,58805.0,58804.0,0.31335341]
[1726560699734,0.3608,58807.0,58805.0,0.08503]
[1726560700135,0.3608,58807.0,58806.0,0.0008]
[1726560701036,0.3618,58807.0,58806.0,0.0008]
[1726560703139,0.3618,58807.0,58806.0,0.0018]
[1726560706334,0.3618,58807.0,58806.0,0.086829]
[1726560706736,0.3618,58807.0,58806.0,0.15415041]
[1726560707255,0.3622,58807.0,58806.0,0.15415041]
[1726560707443,0.3622,58807.0,58806.0,0.086829]
[1726560708043,0.3622,58807.0,58806.0,0.15414844]
[1726560708440,0.3622,58807.0,58806.0,0.086829]
[1726560710447,0.36598,58807.0,58806.0,0.086829]
[1726560711840,0.36598,58807.0,58806.0,0.0018]
[1726560713239,0.36598,58807.0,58806.0,0.086829]
[1726560714149,0.36598,58807.0,58806.0,0.0018]
[1726560716147,0.00518,58807.0,58806.0,0.0018]
[1726560716347,0.36598,58807.0,58806.0,0.0018]
[1726560717567,0.451008,58807.0,58806.0,0.0018]
[1726560718340,0.36598,58807.0,58806.0,0.0018]
[1726560720344,0.451008,58807.0,58806.0,0.0018]
[1726560722547,0.36598,58807.0,58806.0,0.086829]
[1726560723553,0.00518,58807.0,58806.0,0.27402514]
[1726560723756,0.00518,58807.0,58806.0,0.31264674]
[1726560724062,0.44836244,58819.0,58806.0,0.31264674]
[1726560724063,0.36335044,58819.0,58817.0,0.085012]
[1726560724253,0.36335044,58819.0,58818.0,0.245012]
[1726560724439,0.36335044,58819.0,58818.0,0.31278414]
[1726560725047,0.36335044,58819.0,58818.0,0.245412]
[1726560725863,0.36335044,58819.0,58818.0,0.246412]
[1726560726047,0.36335044,58819.0,58818.0,0.33062718]
[1726560726245,0.36335044,58819.0,58818.0,0.246412]
[1726560726746,0.36335044,58819.0,58818.0,0.25574028]
[1726560727148,0.36335044,58819.0,58818.0,0.25674028]
[1726560728649,0.3608,58819.0,58818.0,0.25674028]
[1726560728850,0.3608,58827.0,58821.0,0.085007]
[1726560729051,0.3608,58827.0,58821.0,0.085407]
[1726560729349,0.3608,58827.0,58821.0,0.15265684]
[1726560730152,0.3608,58827.0,58821.0,0.15365684]
[1726560730352,0.3608,58827.0,58821.0,0.15465684]
[1726560731248,0.3608,58827.0,58821.0,0.087407]
[1726560731449,0.3616,58822.0,58821.0,0.087407]
[1726560733858,0.37071511,58822.0,58821.0,0.0024]
[1726560734060,0.45572111,58822.0,58821.0,0.0024]
[1726560736255,0.3616,58822.0,58821.0,0.0024]
[1726560736456,0.3616,58822.0,58821.0,0.087407]
[1726560739485,0.36152,58822.0,58821.0,0.087407]
[1726560746582,0.36152,58822.0,58821.0,0.15465684]
[1726560747185,0.36152,58822.0,58821.0,0.20185684]
[1726560747588,0.00072,58822.0,58821.0,0.76699232]
[1726560747887,0.00072,58822.0,58821.0,0.72997714]
[1726560748887,0.3608,58827.0,58826.0,0.085]
[1726560749089,0.0492,58832.0,58828.0,0.084997]
[1726560749280,0.0492,58832.0,58828.0,0.085797]
[1726560749484,0.0492,58832.0,58828.0,0.15300698]
[1726560749780,0.0492,58832.0,58828.0,0.15220698]
[1726560750195,0.4091,58840.0,58833.0,0.08499]
[1726560750380,0.3608,58840.0,58833.0,0.08579]
[1726560750685,0.3608,58840.0,58833.0,0.15299998]
[1726560750892,0.3608,58840.0,58833.0,0.24579]
[1726560751477,0.3608,58840.0,58833.0,0.24679]
[1726560751887,0.3608,58840.0,58833.0,0.31399998]
[1726560752084,0.3608,58840.0,58833.0,0.0690793]
[1726560752315,0.084983,58839.0,58833.0,0.0018]
[1726560752497,0.3608,58840.0,58833.0,0.0018]
[1726560752498,0.00905856,58835.0,58833.0,0.0018]
[1726560752791,0.00905856,58835.0,58833.0,0.0028]
[1726560753995,0.084983,58838.0,58833.0,0.0028]
[1726560754192,0.00949054,58836.0,58833.0,0.0028]
[1726560754492,0.3608,58840.0,58833.0,0.3150693]
[1726560754695,0.3608,58840.0,58833.0,0.24779]
[1726560754696,0.3606,58834.0,58833.0,0.24779]
[1726560756884,0.3606,58834.0,58833.0,0.24679]
[1726560757084,0.3606,58834.0,58833.0,0.31506454]
[1726560759594,0.3606,58834.0,58833.0,0.23007454]
[1726560759793,0.3606,58834.0,58833.0,0.0028]
[1726560759997,0.445589,58834.0,58833.0,0.0028]
[1726560763899,0.3606,58834.0,58833.0,0.1628]
[1726560765194,0.445589,58834.0,58833.0,0.1628]
[1726560765498,0.445789,58834.0,58833.0,0.07007454]
[1726560765685,0.445789,58834.0,58833.0,0.0028]
[1726560769190,0.445789,58834.0,58833.0,0.15506454]
[1726560769796,0.445789,58834.0,58833.0,0.07007454]
[1726560772302,0.445789,58834.0,58833.0,0.0028]